lending/lending_fUSD_20260312
["ID","MTS","AMOUNT","RATE_DAILY","PERIOD"]
[408268343,1773331841998,-15443.77856834,0.00019489,2]
[408268344,1773331842009,-1556.92,0.00019505,2]
[408268345,1773331842018,-150.0,0.000198,30]
[408268346,1773331842028,-153.74,0.0001989,2]
[408268347,1773331842038,-18827.43588295,0.000199,2]
[408268348,1773331842047,-15443.77856834,0.000199,2]
[408268349,1773331842056,-114578.35677862,0.0001998,2]
[408268350,1773331842066,-1243483.93435048,0.0002,2]
[408268351,1773331842076,-200.0,0.0002,2]
[408268352,1773331842086,-94863.44698528,0.0002,2]
[408268353,1773331842096,-628.64,0.0002,7]
[408268354,1773331842105,-800.9737091,0.0002,2]
[408268355,1773331842115,-2000.0,0.00020235,2]
[408268356,1773331842124,-250.0,0.00020815,2]
[408268357,1773331842133,-3292.0,0.00020916,2]
[408268358,1773331842143,-7783.48163641,0.00020942,2]
[408268359,1773331842153,-1556.92,0.00021456,2]
[408268360,1773331842165,-507.0,0.000215,6]
[408268361,1773331842175,-9000.0,0.00021834,2]
[408268362,1773331842184,-5662.93409241,0.00021834,2]
[408268363,1773331842194,-9000.0,0.00021889,2]
[408268364,1773331842203,-5000.0,0.00021918,2]
[408268365,1773331842214,-9000.0,0.00021944,2]
[408268366,1773331842223,-9000.0,0.00021999,2]
[408268367,1773331842233,-9000.0,0.00022054,2]
[408268368,1773331842243,-9000.0,0.00022109,2]
[408268369,1773331842252,-9000.0,0.00022164,2]
[408268370,1773331842261,-9000.0,0.00022219,2]
[408268371,1773331842271,-2000.0,0.00022259,2]
[408268372,1773331842281,-3428.0,0.00022989,2]
[408268373,1773331842291,-198.59236738,0.00023268,13]
[408268374,1773331842301,-1556.92,0.00023406,2]
[408268375,1773331842310,-2000.0,0.00024282,2]
[408268376,1773331842320,-1000.0,0.00024658,2]
[408268377,1773331842330,-250.0,0.00025,7]
[408268378,1773331842340,-150.0,0.00025,2]
[408268379,1773331842349,-205.26,0.00025448,2]
[408268380,1773331842359,-7783.48163641,0.00025685,2]
[408268381,1773331842368,-1000.0,0.00025996,2]
[408268382,1773331842379,-507.0,0.00026,10]
[408268383,1773331842388,-1181.0,0.0002627,2]
[408268385,1773331842397,-1000.0,0.00026311,2]
[408268387,1773331842406,-1000.0,0.00026585,2]
[408268389,1773331842415,-1448.962,0.00026625,2]
[408268390,1773331842425,-3751.0,0.00026625,2]
[408268391,1773331842435,-448.0,0.00026625,2]
[408268392,1773331842446,-1000.0,0.00026859,2]
[408268393,1773331842456,-159.91083539,0.00026966,2]
[408268394,1773331842468,-162.11877641,0.00026967,2]
[408268395,1773331842478,-159.91083539,0.00026969,2]
[408268399,1773331842488,-162.11877641,0.00026997,2]
[408268403,1773331842499,-1000.0,0.00027133,2]
[408268406,1773331842509,-1000.0,0.00027397,20]
[408268408,1773331842519,-4505.73,0.00027397,10]
[408268410,1773331842528,-1000.0,0.00027407,2]
[408268413,1773331842537,-1000.0,0.00027681,2]
[408268415,1773331842549,-1000.0,0.00027955,2]
[408268417,1773331842558,-1000.0,0.00028228,2]
[408268419,1773331842568,-1000.0,0.00028502,2]
[408268421,1773331842578,-1782.0,0.00028776,2]
[408268422,1773331842588,-1043.28,0.00028801,2]
[408268424,1773331842599,-1885.92,0.000292,14]
[408268425,1773331842608,-3751.0,0.00029625,2]
[408268427,1773331842619,-203.73825552,0.00030336,27]
[408268428,1773331842628,-7783.48163641,0.00030428,2]
[408268429,1773331842639,-507.0,0.000305,14]
[408268430,1773331842648,-189.83659495,0.0003055,2]
[408268431,1773331842659,-2717.53,0.00030635,2]
[408268432,1773331842669,-994.0,0.00030875,5]
[408268433,1773331842678,-2717.53,0.00031401,2]
[408268434,1773331842688,-164.80693539,0.00031731,45]
[408268435,1773331842699,-2717.53,0.00032167,2]
[408268436,1773331842711,-228.0,0.00032393,2]
[408268437,1773331842721,-500.0,0.00032603,2]
[408268438,1773331842731,-383.12,0.00032625,2]
[408268439,1773331842742,-2717.53,0.00032933,2]
[408268440,1773331842752,-152.17434477,0.00032955,2]
[408268441,1773331842762,-228.0,0.00032987,2]
[408268442,1773331842773,-702.15,0.00033,7]
[408268443,1773331842783,-198.54,0.00033,30]
[408268444,1773331842793,-228.0,0.00033025,2]
[408268445,1773331842804,-228.0,0.00033036,2]
[408268446,1773331842814,-228.0,0.0003304,2]
[408268447,1773331842825,-228.0,0.00033092,2]
[408268448,1773331842834,-228.0,0.00033127,2]
[408268449,1773331842845,-9842.08611777,0.0003315,2]
[408268450,1773331842855,-228.0,0.00033157,2]
[408268451,1773331842864,-228.0,0.00033338,7]
[408268453,1773331842874,-228.0,0.00033377,2]
[408268455,1773331842884,-7281.22,0.000336,14]
[408268457,1773331842894,-497.61,0.000336,2]
[408268459,1773331842904,-228.0,0.00033691,2]
[408268460,1773331842914,-2717.53,0.00033698,2]
[408268461,1773331842924,-228.0,0.00034952,2]
[408268462,1773331842937,-228.0,0.00034979,2]
[408268463,1773331842946,-507.0,0.00035,18]
[408268464,1773331842955,-7783.48163641,0.00035171,2]
[408268465,1773331842966,-228.0,0.00035421,2]
[408268466,1773331842976,-228.0,0.0003548,2]
[408268467,1773331842986,-228.0,0.00035571,2]
[408268468,1773331842995,-228.0,0.00035573,2]
[408268469,1773331843006,-228.0,0.00035621,2]
[408268470,1773331843015,-228.0,0.00035733,2]
[408268471,1773331843025,-202.94772925,0.00035797,52]
[408268472,1773331843035,-150.0,0.00035999,2]
[408268473,1773331843045,-166.66,0.00036065,30]
[408268474,1773331843054,-166.66,0.00036824,30]
[408268475,1773331843063,-1571.6,0.000369,30]
[408268476,1773331843073,-875.45,0.00037205,2]
[408268477,1773331843082,-303.26,0.0003725,14]
[408268478,1773331843092,-224.73432265,0.00037404,51]
[408268479,1773331843101,-702.15,0.000375,7]
[408268480,1773331843110,-166.66,0.00037583,30]
[408268481,1773331843120,-825.25938507,0.0003788,120]
[408268482,1773331843129,-285.39524426,0.00037883,52]
[408268483,1773331843139,-166.66,0.00038342,30]
[408268484,1773331843149,-500.0,0.00038465,2]
[408268486,1773331843161,-875.45,0.00039065,2]
[408268489,1773331843171,-166.66,0.00039102,30]
[408268490,1773331843181,-497.61,0.000392,30]
[408268491,1773331843192,-507.0,0.000395,22]
[408268492,1773331843202,-1136.675,0.00039663,55]
[408268493,1773331843212,-166.66,0.00039861,30]
[408268494,1773331843222,-7783.48163641,0.00039914,2]
[408268495,1773331843231,-995.0,0.0004,2]
[408268496,1773331843244,-1043.28,0.00040581,2]
[408268497,1773331843253,-303.24,0.00040865,14]
[408268498,1773331843262,-875.45,0.00040925,2]
[408268499,1773331843272,-702.15,0.00041,30]
[408268500,1773331843282,-260.0,0.00041001,2]
[408268501,1773331843292,-160.81,0.00041083,14]
[408268502,1773331843301,-375.06315449,0.00041096,2]
[408268503,1773331843310,-7281.22,0.000411,14]
[408268504,1773331843323,-173.79,0.00041466,14]
[408268505,1773331843332,-608.89713279,0.00042,2]
[408268506,1773331843342,-875.45,0.00042785,2]
[408268507,1773331843352,-308.23791899,0.00042899,2]
[408268508,1773331843361,-459.91927107,0.00042899,2]
[408268509,1773331843371,-300.00000001,0.00042899,2]
[408268510,1773331843380,-302.33355981,0.00042899,2]
[408268511,1773331843389,-520.22493478,0.00042899,2]
[408268512,1773331843399,-300.0,0.00042899,2]
[408268513,1773331843408,-1085.47073912,0.00042899,2]
[408268514,1773331843417,-300.0,0.00042899,2]
[408268515,1773331843428,-306.96741301,0.00042899,2]
[408268516,1773331843438,-857.12196779,0.00042899,2]
[408268517,1773331843447,-300.0,0.00042899,2]
[408268518,1773331843456,-448.04173909,0.00042899,2]
[408268519,1773331843467,-307.19554063,0.00042899,2]
[408268520,1773331843477,-1085.47073912,0.00042899,2]
[408268521,1773331843487,-300.0,0.00042899,2]
[408268522,1773331843497,-43351.3336,0.000429,30]
[408268523,1773331843508,-2834.0,0.0004297,16]
[408268524,1773331843517,-202.50075004,0.00043,20]
[408268525,1773331843527,-250.0,0.00043068,120]
[408268526,1773331843537,-151.62,0.00043094,14]
[408268527,1773331843547,-777.0,0.000431,5]
[408268528,1773331843556,-160.0,0.00043512,120]
[408268529,1773331843567,-1444.0,0.00043562,120]
[408268530,1773331843578,-150.0,0.00044,57]
[408268531,1773331843588,-507.0,0.00044,26]
[408268532,1773331843599,-227.10744092,0.00044472,80]
[408268533,1773331843609,-702.15,0.000445,30]
[408268534,1773331843620,-875.45,0.00044646,2]
[408268535,1773331843630,-7783.48163641,0.00044657,28]
[408268536,1773331843640,-189.83659495,0.000449,2]
[408268537,1773331843650,-209.50238741,0.0004499,7]
[408268538,1773331843660,-300.0,0.00044999,30]
[408268539,1773331843670,-300.0,0.00044999,30]
[408268540,1773331843680,-110469.61339366,0.00045,44]
[408268541,1773331843690,-913866.33100333,0.00045,120]
[408268542,1773331843876,-292.077,0.00045,120]
[408268543,1773331844290,-324831.3804441,0.00045,120]
[408268544,1773331844302,-8401.0,0.00045,120]
[408268545,1773331844313,-3049.3,0.00045,120]
[408268548,1773331845473,-1053.39662644,0.00045,120]
[408268549,1773331845492,-1290.88419414,0.00045,120]
[408268550,1773331845750,-1791.53371751,0.00045,120]
[408268551,1773331845763,-29564.45475349,0.00045,120]
[408268552,1773331845775,-42395.71474031,0.00045,120]
[408268553,1773331845848,-2000.0,0.000199,2]
[408268554,1773331845858,-18746.18880124,0.00045,120]
[408268555,1773331845870,-355.395,0.00045,120]
[408268560,1773331864493,5000.0,0.0001771,120]
[408268561,1773331864588,432.5310264,0.000179,120]
[408268566,1773332517742,720.8,0.000119,2]
[408268574,1773332850420,9014.39950214,0.000144,2]
[408268637,1773333031687,-270.0,0.00014498,2]
[408268638,1773333031697,-300.0,0.00014498,2]
[408268639,1773333031706,-223.29285291,0.00014498,2]
[408268640,1773333031718,-367.55852767,0.00014498,2]
[408268641,1773333031728,-9.14861942,0.00014498,2]
[408268642,1773333031738,-5000.0,0.00014498,2]
[408268643,1773333031752,-200.0,0.00014498,2]
[408268644,1773333031764,-600.0,0.00014512,2]
[408268645,1773333031773,-83.65138058,0.00014512,2]
[408268646,1773333031785,-516.34861942,0.00014512,2]
[408268647,1773333031794,-250.0,0.00014521,2]
[408268648,1773333031804,-777.22192124,0.00014544,2]
[408268649,1773333031819,-355.00000001,0.00014544,2]
[408268650,1773333031838,-2107.77807875,0.00014544,2]
[408268651,1773333031847,-250.0,0.00014633,2]
[408268652,1773333031856,-704.96,0.00014685,2]
[408268653,1773333031866,-500.0,0.00014708,2]
[408268654,1773333031875,-2589.83,0.00014731,2]
[408268655,1773333031885,-1200.0,0.00014832,2]
[408268656,1773333031894,-500.0,0.00014833,2]
[408268657,1773333031904,-300.0,0.00014911,2]
[408268658,1773333031914,-1500.0,0.00014912,2]
[408268659,1773333031923,-300.0,0.00014914,2]
[408268660,1773333031932,-761.0,0.00014915,2]
[408268661,1773333031942,-2323.32,0.00014963,2]
[408268662,1773333031951,-150.0,0.00014999,2]
[408268663,1773333031961,-250.0,0.00015,2]
[408268664,1773333031970,-500.0,0.00015,2]
[408268665,1773333031979,-445.92650306,0.00015,2]
[408268666,1773333031987,-500.0,0.00015,2]
[408268667,1773333031997,-500.0,0.00015,2]
[408268668,1773333032006,-500.0,0.00015,2]
[408268669,1773333032015,-500.0,0.00015,2]
[408268670,1773333032025,-299.0,0.00015082,2]
[408268671,1773333032035,-1236.0,0.00015112,2]
[408268672,1773333032044,-386.99209941,0.00015161,2]
[408268673,1773333032055,-7581.13,0.00015174,2]
[408268674,1773333032070,-9999.99,0.00015174,2]
[408268675,1773333032079,-150.99,0.00015174,2]
[408268676,1773333032089,-878.0,0.0001519,2]
[408268677,1773333032099,-1715.84,0.00015217,2]
[408268678,1773333032109,-150.99,0.00015217,2]
[408268679,1773333032118,-1976.0,0.00015221,2]
[408268680,1773333032126,-269.39684157,0.00015225,2]
[408268681,1773333032142,-230.60315843,0.00015225,2]
[408268682,1773333032151,-233.0,0.0001524,2]
[408268683,1773333032164,-1111.0,0.00015251,2]
[408268684,1773333032174,-433.0,0.00015271,2]
[408268685,1773333032183,-812.0,0.00015276,2]
[408268686,1773333032192,-517.0,0.00015301,2]
[408268687,1773333032201,-1513.39684157,0.00015307,2]
[408268688,1773333032212,-282.60315843,0.00015307,2]
[408268689,1773333032221,-943.0,0.00015325,2]
[408268690,1773333032230,-500.0,0.00015548,2]
[408268691,1773333032239,-500.0,0.00015548,2]
[408268692,1773333032248,-1000.0,0.00015548,2]
[408268693,1773333032258,-500.0,0.00015548,2]
[408268694,1773333032267,-1969.63,0.0001557,2]
[408268695,1773333032276,-240.0,0.00015741,2]
[408268696,1773333032285,-500.0,0.00015741,2]
[408268697,1773333032294,-1131.38839706,0.00015773,2]
[408268698,1773333032303,-2500.0,0.00015819,2]
[408268699,1773333032312,-20979.58138197,0.00015819,2]
[408268700,1773333032321,-2000.0,0.0001589,2]
[408268701,1773333032331,-154.26030928,0.000159,2]
[408268702,1773333032340,-161.84466438,0.000159,2]
[408268703,1773333032349,-500.0,0.00015904,2]
[408268704,1773333032359,-143724.5048,0.00015919,2]
[408268705,1773333032368,-1000.0,0.00015919,2]
[408268706,1773333032378,-2427.41242645,0.00015919,2]
[408268707,1773333032389,-2572.58757355,0.00015919,2]
[408268708,1773333032397,-164.44179895,0.00015919,2]
[408268709,1773333032406,-16146.95420051,0.00015919,2]
[408268710,1773333032415,-6810.54643192,0.00015919,2]
[408268711,1773333032424,-189.83659495,0.00015919,2]
[408268712,1773333032433,-5000.0,0.00015948,2]
[408268713,1773333032441,-500.0,0.00015948,2]
[408268714,1773333032450,-300.0,0.00015948,2]
[408268715,1773333032459,-600.0,0.00015948,2]
[408268716,1773333032468,-287.27422917,0.00015948,2]
[408268717,1773333032477,-410.29316939,0.00015948,2]
[408268718,1773333032486,-270.62653071,0.00015948,2]
[408268719,1773333032495,-250.0,0.00015948,2]
[408268720,1773333032506,-3173.57426313,0.0001596,2]
[408268721,1773333032519,-997.75,0.00015972,2]
[408268722,1773333032529,-500.0,0.00015973,2]
[408268723,1773333032540,-499.46578139,0.00015973,2]
[408268724,1773333032554,-619.71855644,0.00015973,2]
[408268725,1773333032564,-9842.08611779,0.00015973,2]
[408268726,1773333032576,-151.0,0.00016009,2]
[408268727,1773333032587,-151.0,0.00016009,2]
[408268728,1773333032598,-151.0,0.00016009,2]
[408268729,1773333032609,-151.0,0.00016009,2]
[408268730,1773333032619,-151.0,0.00016009,2]
[408268731,1773333032629,-151.0,0.00016009,2]
[408268732,1773333032638,-151.0,0.00016009,2]
[408268733,1773333032647,-151.0,0.00016009,2]
[408268734,1773333032657,-151.0,0.00016009,2]
[408268735,1773333032667,-151.0,0.00016009,2]
[408268736,1773333032676,-151.0,0.00016009,2]
[408268737,1773333032687,-151.0,0.00016009,2]
[408268738,1773333032697,-151.0,0.00016009,2]
[408268739,1773333032708,-151.0,0.00016009,2]
[408268740,1773333032718,-151.0,0.00016009,2]
[408268741,1773333032728,-151.0,0.00016009,2]
[408268742,1773333032741,-151.0,0.00016009,2]
[408268743,1773333032752,-151.0,0.00016009,2]
[408268744,1773333032762,-151.0,0.00016009,2]
[408268745,1773333032773,-151.0,0.00016009,2]
[408268746,1773333032784,-500.0,0.00016015,2]
[408268747,1773333032793,-500.0,0.00016018,2]
[408268748,1773333032804,-500.0,0.00016018,2]
[408268749,1773333032814,-500.0,0.00016018,2]
[408268750,1773333032824,-500.0,0.00016018,2]
[408268751,1773333032834,-500.0,0.00016018,2]
[408268752,1773333032844,-500.0,0.00016018,2]
[408268753,1773333032854,-500.0,0.00016018,2]
[408268754,1773333032864,-500.0,0.00016018,2]
[408268755,1773333032875,-500.0,0.00016018,2]
[408268756,1773333032885,-500.0,0.00016018,2]
[408268757,1773333032895,-500.0,0.00016018,2]
[408268758,1773333032905,-500.0,0.00016018,2]
[408268759,1773333032914,-500.0,0.00016018,2]
[408268760,1773333032924,-500.0,0.00016018,2]
[408268761,1773333032934,-500.0,0.00016018,2]
[408268762,1773333032944,-500.0,0.00016018,2]
[408268763,1773333032955,-500.0,0.00016018,2]
[408268764,1773333032966,-374.26461894,0.00016018,2]
[408268765,1773333032977,-500.0,0.00016018,2]
[408268766,1773333032987,-500.0,0.00016018,2]
[408268767,1773333032997,-315.12100297,0.00016018,2]
[408268768,1773333033010,-184.87899703,0.00016018,2]
[408268769,1773333033020,-500.0,0.00016018,2]
[408268770,1773333033030,-500.0,0.00016018,2]
[408268771,1773333033040,-500.0,0.00016018,2]
[408268772,1773333033050,-586.04621402,0.00016018,2]
[408268773,1773333033062,-500.0,0.00016073,2]
[408268774,1773333033073,-500.0,0.00016073,2]
[408268775,1773333033083,-500.0,0.00016073,2]
[408268776,1773333033093,-500.89524145,0.00016073,2]
[408268777,1773333033103,-502.44343779,0.00016073,2]
[408268778,1773333033121,-500.0,0.00016073,2]
[408268779,1773333033138,-500.0,0.00016073,2]
[408268780,1773333033150,-1500.0,0.00016096,2]
[408268781,1773333033161,-9999.99,0.00016116,2]
[408268782,1773333033172,-32942.6924,0.00016119,2]
[408268783,1773333033185,-255.0,0.00016124,2]
[408268784,1773333033198,-600.0,0.00016154,2]
[408268785,1773333033210,-300.0,0.00016154,2]
[408268786,1773333033219,-5000.0,0.00016154,2]
[408268787,1773333033230,-500.0,0.00016154,2]
[408268788,1773333033240,-539.98986878,0.00016218,2]
[408268789,1773333033251,-500.0,0.00016218,2]
[408268790,1773333033262,-500.0,0.00016218,2]
[408268791,1773333033272,-500.0,0.00016218,2]
[408268792,1773333033283,-500.0,0.00016218,2]
[408268793,1773333033294,-500.0,0.00016218,2]
[408268794,1773333033305,-500.0,0.00016218,2]
[408268795,1773333033316,-500.0,0.00016218,2]
[408268796,1773333033327,-500.0,0.00016218,2]
[408268797,1773333033338,-500.0,0.00016218,2]
[408268798,1773333033349,-464.92077009,0.00016218,2]
[408268799,1773333033361,-500.0,0.00016218,2]
[408268800,1773333033372,-500.0,0.00016218,2]
[408268801,1773333033383,-500.0,0.00016218,2]
[408268802,1773333033394,-500.0,0.00016218,2]
[408268803,1773333033405,-500.0,0.00016218,2]
[408268804,1773333033416,-500.0,0.00016218,2]
[408268805,1773333033427,-500.0,0.00016218,2]
[408268806,1773333033438,-500.0,0.00016218,2]
[408268807,1773333033448,-548.09996795,0.00016218,2]
[408268808,1773333033458,-500.0,0.00016218,2]
[408268809,1773333033469,-500.0,0.00016218,2]
[408268810,1773333033479,-500.0,0.00016218,2]
[408268811,1773333033490,-500.0,0.00016218,2]
[408268812,1773333033501,-500.0,0.00016218,2]
[408268813,1773333033511,-484.25426362,0.00016218,2]
[408268814,1773333033522,-500.0,0.00016218,2]
[408268815,1773333033532,-500.0,0.00016218,2]
[408268816,1773333033546,-500.0,0.00016218,2]
[408268817,1773333033559,-500.0,0.00016218,2]
[408268818,1773333033571,-500.0,0.00016218,2]
[408268819,1773333033583,-500.0,0.00016218,2]
[408268820,1773333033594,-500.0,0.00016218,2]
[408268821,1773333033606,-500.0,0.00016218,2]
[408268822,1773333033618,-500.0,0.00016218,2]
[408268823,1773333033629,-497.49770464,0.00016218,2]
[408268824,1773333033639,-500.0,0.00016218,2]
[408268825,1773333033653,-500.0,0.00016218,2]
[408268826,1773333033665,-500.0,0.00016218,2]
[408268827,1773333033676,-500.0,0.00016218,2]
[408268828,1773333033689,-500.0,0.00016218,2]
[408268829,1773333033699,-500.0,0.00016218,2]
[408268830,1773333033708,-500.0,0.00016218,2]
[408268831,1773333033718,-500.0,0.00016218,2]
[408268832,1773333033728,-500.0,0.00016218,2]
[408268833,1773333033738,-500.0,0.00016218,2]
[408268834,1773333033748,-500.0,0.00016218,2]
[408268835,1773333033759,-500.0,0.00016218,2]
[408268836,1773333033768,-500.0,0.00016218,2]
[408268837,1773333033779,-500.0,0.00016218,2]
[408268838,1773333033789,-500.0,0.00016218,2]
[408268839,1773333033800,-500.0,0.00016218,2]
[408268840,1773333033811,-500.0,0.00016218,2]
[408268841,1773333033822,-501.926287,0.00016218,2]
[408268842,1773333033833,-500.0,0.00016218,2]
[408268843,1773333033843,-997.75,0.00016246,2]
[408268844,1773333033854,-500.0,0.00016289,2]
[408268845,1773333033864,-1680.0,0.00016315,2]
[408268846,1773333033874,-420.0,0.00016321,2]
[408268847,1773333033885,-420.0,0.00016324,2]
[408268848,1773333033895,-364.44,0.00016373,2]
[408268849,1773333033906,-27910.24969547,0.00016462,2]
[408268850,1773333037720,-6187.95,0.00016462,2]
[408268851,1773333037733,-324.27,0.00016462,2]
[408268853,1773333037745,-568.4,0.00016462,2]
[408268854,1773333037782,-10819.8295686,0.00016462,2]
[408268984,1773333040277,-716.49020845,0.00016462,2]
[408268987,1773333040290,-500.0,0.00016462,2]
[408268989,1773333040302,-72691.60706192,0.00016462,2]
[408268991,1773333040313,-500.0,0.00016473,2]
[408268993,1773333040323,-500.0,0.00016473,2]
[408268995,1773333040333,-283.69039474,0.00016473,2]
[408268997,1773333040343,-500.0,0.00016473,2]
[408268999,1773333040353,-500.0,0.00016473,2]
[408269001,1773333040363,-997.75,0.0001652,2]
[408269003,1773333040373,-1000.0,0.00016521,2]
[408269005,1773333040383,-500.0,0.00016563,2]
[408269007,1773333040393,-183.79,0.00016584,2]
[408269009,1773333040403,-1000.0,0.00016621,2]
[408269011,1773333040413,-1000.0,0.00016621,2]
[408269012,1773333040423,-1000.0,0.00016621,2]
[408269014,1773333040434,-2000.0,0.00016644,2]
[408269015,1773333040445,-997.75,0.00016794,2]
[408269016,1773333040455,-29999.99,0.00016922,2]
[408269017,1773333040466,-1208.77957433,0.00016973,2]
[408269018,1773333040476,-487.86945979,0.00016973,2]
[408269019,1773333040486,-938.08263821,0.00016973,2]
[408269020,1773333040496,-1483.42040625,0.00016973,2]
[408269021,1773333040507,-300.0,0.00017,2]
[408269022,1773333040517,-507.0,0.00017,2]
[408269023,1773333040527,-860.72006406,0.00017021,2]
[408269024,1773333040538,-997.75,0.00017068,2]
[408269025,1773333040549,-1039.63237117,0.00017068,2]
[408269026,1773333040559,-205.69673445,0.00017151,2]
[408269027,1773333040570,-1500.0,0.00017168,2]
[408269028,1773333040580,-1500.0,0.00017168,2]
[408269029,1773333040590,-433.0,0.00017339,2]
[408269030,1773333040600,-997.75,0.00017342,2]
[408269031,1773333040611,-285.25149258,0.00017578,2]
[408269032,1773333040621,-997.75,0.00017616,2]
[408269033,1773333040632,-2000.0,0.00017716,2]
[408269034,1773333040643,-2000.0,0.00017716,2]
[408269035,1773333040653,-500.0,0.00017727,2]
[408269038,1773333040664,-364.44,0.00017742,2]
[408269040,1773333040674,-205.26,0.000178,2]
[408269041,1773333040684,-800.0,0.00017808,2]
[408269042,1773333040698,-428.0,0.00017864,2]
[408269043,1773333040708,-997.82,0.0001789,2]
[408269044,1773333040719,-4161.12901524,0.000179,2]
[408269045,1773333040991,-2351.0,0.00017946,2]
[408269046,1773333041001,-500.0,0.00018264,2]
[408269047,1773333041011,-1000.0,0.00018264,2]
[408269048,1773333041020,-251.0,0.00018629,2]
[408269049,1773333041030,-1600.0,0.00018904,2]
[408269050,1773333041039,-152.22165255,0.00019,2]
[408269051,1773333041049,-350.0,0.00019,2]
[408269052,1773333041060,-20979.5813819,0.0001905,2]
[408269053,1773333041071,-16146.95420044,0.00019139,2]
[408269054,1773333041080,-250.0,0.00019157,2]
[408269055,1773333041089,-499.99,0.000196,2]
[408269056,1773333041099,-279.05,0.000196,2]
[408269057,1773333041108,-3292.0,0.00019741,2]
[408269058,1773333041118,-150.0,0.000198,14]
[408269059,1773333041127,-926.85698105,0.000198,2]
[408269060,1773333041138,-2000.0,0.000199,2]
[408269061,1773333041148,-558.0,0.0002,2]
[408269062,1773333041157,-628.64,0.0002,7]
[408269063,1773333041166,-800.9737091,0.0002,2]
[408269064,1773333041175,-6810.54643185,0.00020702,2]
[408269065,1773333041184,-400.0,0.00021,2]
[408269066,1773333041193,-1715.84,0.00021304,2]
[408269067,1773333041203,-164.44179894,0.00021499,2]
[408269068,1773333041212,-507.0,0.000215,6]
[408269069,1773333041221,-4609.0,0.00021715,2]
[408269070,1773333041230,-705.01,0.00021815,2]
[408269071,1773333041240,-705.01,0.00022089,2]
[408269072,1773333041250,-20979.5813819,0.00022281,2]
[408269073,1773333041260,-16146.95420044,0.00022359,2]
[408269074,1773333041269,-705.01,0.00022363,2]
[408269075,1773333041278,-698.48,0.00022637,2]
[408269076,1773333041287,-1699.0,0.00023886,2]
[408269077,1773333041296,-500.0,0.00024873,2]
[408269078,1773333041305,-500.0,0.00024899,2]
[408269079,1773333041314,-500.0,0.00024899,2]
[408269080,1773333041323,-26789.3127716,0.000249,3]
[408269081,1773333041333,-250.0,0.00025,7]
[408269082,1773333041342,-6810.54643185,0.00025485,2]
[408269083,1773333041351,-20979.5813819,0.00025513,2]
[408269084,1773333041360,-16146.95420044,0.00025579,2]
[408269085,1773333041369,-507.0,0.00026,10]
[408269086,1773333041378,-183.79,0.00026404,2]
[408269087,1773333041387,-164.44179894,0.00027079,2]
[408269088,1773333041396,-190.26349617,0.00027318,52]
[408269089,1773333041405,-150.0,0.00027421,5]
[408269090,1773333041414,-275.93335682,0.00027421,5]
[408269091,1773333041424,-1000.0,0.00027955,2]
[408269092,1773333041433,-1000.0,0.00028228,2]
[408269093,1773333041443,-1000.0,0.00028502,2]
[408269094,1773333041452,-20979.5813819,0.00028744,2]
[408269095,1773333041461,-1000.0,0.00028776,2]
[408269096,1773333041470,-16146.95420044,0.00028799,2]
[408269097,1773333041479,-1000.0,0.0002905,2]